Workbook

Sheet Apt Detail
J1: =SUBTOTAL(9,J2:J3906) -> 2495.510417
A2: Apt | B2: Item | C2: Name | D2: Width (Inches) | E2: Height (Inches) | F2: Length (Inches) | G2: Width (Feet) | H2: Height (Feet) | I2: Length (Feet) | J2: Sq Ft Living | K2: Notes
A3: A | B3: Room | C3: Bathroom w/shower | D3: 79 | E3: 96 | F3: 120 | G3: =SUM(D3/12) -> 6.583333333 | H3: 8 | I3: 10 | J3: =SUM(G3*I3) -> 65.83333333 | K3: Refinished shower. New Toilet and Vanity sink. (Age < 6 Months)
A4: A | B4: Room | C4: Bedroom | D4: 121 | E4: 114 | F4: 180 | G4: 10.08333333 | H4: 9.5 | I4: 15 | J4: =SUM(G4*I4) -> 151.25
A5: A | B5: Exterior | C5: Building Dimension (800 s/f ) | D5: 240 | F5: 480 | G5: =SUM(D5/12) -> 20 | I5: =SUM(F5/12) -> 40 | K5: Half of Duplex Building
A6: A | B6: Room | C6: Closet (Coat) | D6: 26 | E6: 84 | F6: 72 | G6: =SUM(D6/12) -> 2.166666667 | H6: =SUM(E6/12) -> 7 | I6: =SUM(F6/12) -> 6 | K6: Access from living room. Double doors. Storage area above w/double doors.
A7: A | B7: Room | C7: Closet (Master Bedroom) | D7: 26 | E7: 84 | F7: 72 | G7: =SUM(D7/12) -> 2.166666667 | H7: =SUM(E7/12) -> 7 | I7: =SUM(F7/12) -> 6 | K7: Bi-fold wood decorator doors. Storage area above w/double doors.
A8: A | B8: Room | C8: Flooring | K8: Rigid core Luxury vinyl 12" x 24" planking thoughout - Light grey/white stone look.
A9: A | B9: Room | C9: Hallway (To Living, Bdrm & Bath) | D9: 42 | E9: 114 | F9: 156 | G9: =SUM(D9/12) -> 3.5 | H9: =SUM(E9/12) -> 9.5 | I9: =SUM(F9/12) -> 13 | J9: =SUM(G9*I9) -> 45.5
A10: A | B10: Appliance/Fixture | C10: HVAC | K10: Pioneer Mini-split Heat Pumps (24k Living+Kitchen, 12k Bedroom+Bath) NOTE: Roof mount Evaporative Cooler decomissioned and disconnected from water source.
A11: A | B11: Room | C11: Kitchen | K11: See: Living Room/Kitchen
A12: A | B12: Room | C12: Kitchen Island | D12: 42 | E12: 36 | F12: 72 | G12: =SUM(D12/12) -> 3.5 | H12: 3 | I12: 6 | K12: Countertop matches Kitchen counters. Hanging lights. (Age < 6 months)
A13: A | B13: Room | C13: Laundry (access via bathroom) | D13: 31 | E13: 96 | F13: 116 | G13: 2.583333333 | H13: 8 | I13: 9.666666667 | J13: =SUM(G13*I13) -> 24.97222222 | K13: Washer-Dryer Combo - Water Heater (Age < 6 months).
A14: A | B14: Room | C14: Living Room/Kitchen | D14: 231 | E14: 114 | F14: 286 | G14: 19.25 | H14: 9.5 | I14: 23.83333333 | J14: =SUM(G14*I14) -> 458.7916667 | K14: Open concept with Kitchen island. Wall and Base Cabinetry (Age < 6 months)
A15: A | B15: Appliance/Fixture | C15: Microwave | K15: Built-In over Stove. 30" x 16" x 15.5" (Age < 6 months)
A16: A | B16: Exterior | C16: Patio (covered) | D16: 96 | E16: 96 | F16: 192 | G16: =SUM(D16/12) -> 8 | H16: =SUM(E16/12) -> 8 | I16: =SUM(F16/12) -> 16 | K16: Concrete floor with framed solid roof. Steel gate. (Age < 2 months)
A17: A | B17: Appliance/Fixture | C17: Refrigerator | K17: Double door stainless 36" x 30" (Age < 6 months)
A18: A | B18: Renovation | C18: Renovation | K18: Complete - Every room, cabinets, fixtures, flooring (Age < 6 months)
A19: A | B19: Exterior | C19: Side Yard | D19: 120 | F19: 480 | G19: =SUM(D19/12) -> 10 | I19: =SUM(F19/12) -> 40 | K19: Gravel area
A20: A | B20: Appliance/Fixture | C20: Sink | K20: Double stainless 33" (Age < 6 months)
A21: A | B21: Appliance/Fixture | C21: Stove/Oven | K21: Electric w/glass cooktop 30" (Age < 6 months)
A22: B | B22: Exterior | C22: Backyard (840 s/f ) | D22: 336 | F22: 360 | G22: =SUM(D22/12) -> 28 | I22: =SUM(F22/12) -> 30 | K22: Fenced-in graveled area
A23: B | B23: Room | C23: Bathroom w/shower | D23: 79 | E23: 96 | F23: 120 | G23: 6.583333333 | H23: =SUM(E23/12) -> 8 | I23: 10 | J23: =SUM(G23*I23) -> 65.83333333 | K23: Refinished shower. New Toilet and Vanity sink. (Age < 2 Years)
A24: B | B24: Room | C24: Bedroom | D24: 131.5 | E24: 114 | F24: 173 | G24: 10.95833333 | H24: =SUM(E24/12) -> 9.5 | I24: 14.41666667 | J24: =SUM(G24*I24) -> 157.9826389
A25: B | B25: Exterior | C25: Building Dimension (800 s/f ) | D25: 240 | F25: 480 | G25: 20 | I25: 40 | K25: Half of Duplex Building
A26: B | B26: Room | C26: Closet (Coat) | D26: 29 | E26: 114 | F26: 62 | G26: 2.416666667 | H26: =SUM(E26/12) -> 9.5 | I26: 5.166666667 | K26: Access from living room.
A27: B | B27: Room | C27: Closet (Master Bedroom) | D27: 26 | E27: 84 | F27: 82 | G27: 2.166666667 | H27: =SUM(E27/12) -> 7 | I27: 6.833333333 | J27: =SUM(G27*I27) -> 14.80555556 | K27: Sliding double decorator doors.
A28: B | B28: Room | C28: Dining Area | D28: 98 | E28: 114 | F28: 73.5 | G28: 8.166666667 | H28: =SUM(E28/12) -> 9.5 | I28: 6.125 | J28: =SUM(G28*I28) -> 50.02083333
A29: B | B29: Room | C29: Flooring | K29: Rigid core Luxury vinyl planking thoughout - Light tan/white stone look. (Age ~ 2 yrs)
A30: B | B30: Room | C30: HVAC | K30: Pioneer Mini-split Heat Pumps (Age ~ 3 yrs, 18k + 12k Living+Kitchen, 12k Bedroom+Bath) NOTE: Roof mount Evaporative Cooler decomissioned and disconnected from water source.
A31: B | B31: Room | C31: Kitchen | D31: 98 | E31: 114 | F31: 157.5 | G31: =SUM(D31/12) -> 8.166666667 | H31: 9.5 | I31: 13.125 | J31: =SUM(G31*I31) -> 107.1875 | K31: Wall and Base Cabinetry (Age < 2 Years).
A32: B | B32: Room | C32: Laundry (access via bathroom) | D32: 32 | E32: 96 | F32: 87 | G32: 2.666666667 | H32: 8 | I32: 7.25 | J32: =SUM(G32*I32) -> 19.33333333 | K32: Washer-Dryer-Water Heater Room
A33: B | B33: Room | C33: Living Room (w/Coat closet) | D33: 209 | E33: 114 | F33: 231 | G33: 17.41666667 | H33: 9.5 | I33: 19.25 | J33: =SUM(G33*I33) -> 335.2708333 | K33: Coat closet 32" x 72"
A34: B | B34: Exterior | C34: Patio (covered) with open courtyard | D34: 119.5 | E34: 96 | F34: 228 | G34: 9.958333333 | H34: 8 | I34: 19 | K34: Concrete floor w/solid roof. Privacy walls and steel gates (Age < 6 years)
A35: B | B35: Appliance/Fixture | C35: Refrigerator | K35: Double door stainless 36" x 30" (Age < 6 months)
A36: B | B36: Renovation | C36: Renovation | K36: Complete - Every room, cabinets, fixtures, flooring (Age < 3 years)
A37: B | B37: Appliance/Fixture | C37: Sink | K37: Double stainless 32" (Age ~ 2 yrs)
A38: B | B38: Appliance/Fixture | C38: Stove | K38: Electric Stove w/Glass cooktop/Oven 30" (Age ~ 2 yrs)
A39: C | B39: Exterior | C39: Backyard (1344 s/f ) | D39: 336 | F39: 576 | G39: =SUM(D39/12) -> 28 | I39: =SUM(F39/12) -> 48 | K39: Fenced-in graveled area
A40: C | B40: Room | C40: Bathroom-Guest (1/2 bath) | D40: 48 | E40: 108 | F40: 60 | G40: 4 | H40: =SUM(E40/12) -> 9 | I40: 5 | J40: =SUM(G40*I40) -> 20 | K40: Toilet and Vanity sink. (Age < 9 months)
A41: C | B41: Room | C41: Bathroom-Master w/shower | D41: 48 | E41: 108 | F41: 94 | G41: 4 | H41: =SUM(E41/12) -> 9 | I41: 7.833333333 | J41: =SUM(G41*I41) -> 31.33333333 | K41: New Shower stall, Toilet & Vanity sink. (Age < 9 months)
A42: C | B42: Room | C42: Bedroom-Den | D42: 96 | E42: 108 | F42: 108 | G42: 8 | H42: =SUM(E42/12) -> 9 | I42: 9 | J42: =SUM(G42*I42) -> 72
A43: C | B43: Room | C43: Bedroom-Master | D43: 121 | E43: 108 | F43: 159 | G43: 10.08333333 | H43: =SUM(E43/12) -> 9 | I43: 13.25 | J43: =SUM(G43*I43) -> 133.6041667 | K43: Ceiling fan with remote.
A44: C | B44: Exterior | C44: Building Dimension (1100 s/f) | D44: 340 | F44: 462 | G44: 28.33333333 | I44: 38.5 | K44: Single family building
A45: C | B45: Room | C45: Closet (Master Bedroom) | D45: 29 | E45: 108 | F45: 94 | G45: 2.416666667 | H45: =SUM(E45/12) -> 9 | I45: 7.833333333 | J45: =SUM(G45*I45) -> 18.93055556 | K45: Sliding mirrored doors
A46: C | B46: Room | C46: Closet (Water Heater) | D46: 31 | E46: 108 | F46: 48 | G46: 2.583333333 | H46: =SUM(E46/12) -> 9 | I46: 4 | J46: =SUM(G46*I46) -> 10.33333333 | K46: Rebuilt Age < 5 Years
A47: C | B47: Room | C47: Dining Room | D47: 109 | E47: 108 | F47: 165 | G47: 9.083333333 | H47: =SUM(E47/12) -> 9 | I47: 13.75 | J47: =SUM(G47*I47) -> 124.8958333 | K47: Adjoins the Living room.
A48: C | B48: Appliance/Fixture | C48: Dishwasher | K48: Under-counter (Age < 6 Years)
A49: C | B49: Room | C49: Dressing Room off Master Bdrm | D49: 77 | E49: 108 | F49: 101 | G49: =SUM(D49/12) -> 6.416666667 | H49: =SUM(E49/12) -> 9 | I49: =SUM(F49/12) -> 8.416666667 | J49: =SUM(G49*I49) -> 54.00694444 | K49: In-wall storage shelving 4' x 8' x 16"
A50: C | B50: Room | C50: Flooring | K50: 1) Master Bdrm - Rigid core Luxury vinyl planking - Light grey/white stone look. Ceramic tile in dressing room & closet. 2) Kitchen - Vinyl cushion decorator tile 3) All other rooms - Dark rosewood hi-grade laminate.
A51: C | B51: Appliance/Fixture | C51: HVAC | K51: Rooftop HVAC package Units (2) zoned.
A52: C | B52: Room | C52: Kitchen cooking area | D52: 94 | E52: 108 | F52: 208 | G52: =SUM(D52/12) -> 7.833333333 | H52: 9 | I52: 17.33333333 | J52: =SUM(G52*I52) -> 135.7777778 | K52: Wall and Base Cabinetry. Dishwasher
A53: C | B53: Room | C53: Kitchen dining Area | D53: 63 | E53: 108 | F53: 94 | G53: 5.25 | H53: 9 | I53: 7.833333333 | J53: =SUM(G53*I53) -> 41.125 | K53: Ceiling fan
A54: C | B54: Room | C54: Laundry | D54: 96 | E54: 108 | F54: 114 | G54: 8 | H54: 9 | I54: 9.5 | J54: =SUM(G54*I54) -> 76 | K54: Washer-Dryer (Age < 3 Years) & base storage cabinets with counter.
A55: C | B55: Room | C55: Living Room | D55: 163 | E55: 108 | F55: 248 | G55: 13.58333333 | H55: 9 | I55: 20.66666667 | J55: =SUM(G55*I55) -> 280.7222222
A56: C | B56: Appliance/Fixture | C56: Microwave | K56: Countertop style
A57: C | B57: Exterior | C57: Patio (covered) with open courtyard | D57: 119.5 | E57: 96 | F57: 228 | G57: =SUM(D57/12) -> 9.958333333 | H57: =SUM(E57/12) -> 8 | I57: =SUM(F57/12) -> 19 | K57: Concrete floor w/solid roof. Privacy walls and steel gates (Age < 6 years)
A58: C | B58: Appliance/Fixture | C58: Refrigerator | K58: Double door 36" x 30" (Age < 8 Years)
A59: C | B59: Renovation | C59: Renovation | K59: All paint, fixtures, and flooring. Kitchen cabinets refinished. (Age 1-5 years)
A60: C | B60: Appliance/Fixture | C60: Sink | K60: Double stainless 32"
A61: C | B61: Appliance/Fixture | C61: Stove/Oven | K61: Electric Stove/Oven (Age ~ 6 yrs)

Sheet Rent+Lease
A1: Apt | B1: Sq/Ft | C1: Rent (monthly) | D1: Lease End Date
A2: A | B2: 800 | C2: 950 | D2: 2026-11-01
A3: B | B3: 800 | C3: 800 | D3: 2026-09-30
A4: C | B4: 1120 | C4: 1000 | D4: 2026-11-01

Sheet Taxes+Ins+Mortgage
A1: Property Taxes Full year (Maricopa County) | B1: Property Insurance (Auto-Owners) | C1: Mortgage Payoff 2026-04-30 (Wells Fargo)
A2: 662.48 | B2: 2821.19 | C2: 43535.38
